bitfinex-derivatives/quotes_ETHF0:USTF0_20230402
["timestamp","ask_amount","ask_price","bid_price","bid_amount"]
[1680454694297,0.58358098,1795.1,1794.8,5.0428]
[1680454694497,1.45895009,1795.2,1794.8,5.0428]
[1680454694697,0.58358098,1795.1,1794.8,5.0428]
[1680454695004,0.58358098,1795.1,1794.8,4.0428]
[1680454701602,0.58358098,1795.1,1794.8,0.835]
[1680454701800,1.41858098,1795.1,1794.7,0.835]
[1680454701996,1.41858098,1795.1,1794.7,1.835]
[1680454702202,0.58358098,1795.1,1794.8,0.834]
[1680454702503,0.58358098,1795.1,1794.8,4.0418]
[1680454707910,0.58358098,1795.1,1794.8,0.834]
[1680454708110,1.45895009,1795.1,1794.8,0.834]
[1680454710000,0.58358098,1795.1,1794.8,4.0418]
[1680454710206,1.45895009,1795.1,1794.8,4.0418]
[1680454712013,1.45895009,1795.1,1794.8,3.2078]
[1680454714312,0.58358098,1795.0,1794.8,3.2078]
[1680454716813,1.45895009,1795.1,1794.9,5.575]
[1680454717012,0.58358098,1795.2,1795.0,5.8778]
[1680454717316,0.58358098,1795.2,1795.1,1.91007249]
[1680454717617,0.58358098,1795.2,1795.1,0.91007249]
[1680454721622,0.58358098,1795.2,1795.1,1.47343948]
[1680454722920,0.58358098,1795.2,1795.1,2.30743948]
[1680454728423,1.45895009,1795.3,1795.1,2.30743948]
[1680454728724,1.45895009,1795.3,1795.2,4.0358]
[1680454730926,0.58358098,1795.3,1795.2,4.0358]
[1680454731717,1.45895009,1795.3,1795.2,4.0358]
[1680454731930,1.45895009,1795.3,1795.2,4.30740154]
[1680454732629,0.58358098,1795.3,1795.2,4.30740154]
[1680454734834,1.45895009,1795.3,1795.2,1.09960154]
[1680454735237,0.58358098,1795.3,1795.2,4.30740154]
[1680454737637,0.58358098,1795.3,1795.2,1.09960154]
[1680454738239,0.58358098,1795.3,1795.2,4.30740154]
[1680454741240,0.58358098,1795.3,1795.2,1.09960154]
[1680454742945,1.45895009,1795.4,1795.2,1.09960154]
[1680454743246,1.4584993,1795.4,1795.3,0.828]
[1680454743452,0.87536911,1795.4,1795.3,0.828]
[1680454744550,1.45850069,1795.4,1795.3,0.828]
[1680454744745,1.45848145,1795.4,1795.3,0.828]
[1680454744953,0.87536911,1795.4,1795.3,0.828]
[1680454745352,1.45846526,1795.4,1795.3,0.828]
[1680454745655,1.4584621,1795.4,1795.3,0.828]
[1680454746051,0.58309299,1795.4,1795.3,0.828]
[1680454746247,0.58309299,1795.5,1795.3,4.0428]
[1680454746449,0.58309299,1795.5,1795.4,0.835]
[1680454746751,1.4584621,1795.5,1795.4,0.835]
[1680454746955,1.4584621,1795.5,1795.4,1.10629441]
[1680454747456,0.58309299,1795.5,1795.4,1.10629441]
[1680454752163,0.58309299,1795.5,1795.4,0.27129441]
[1680454754162,1.4584621,1795.5,1795.4,0.27129441]
[1680454755668,1.45188563,1795.5,1795.4,0.27129441]
[1680454756570,0.87536911,1795.5,1795.4,0.27129441]
[1680454768979,1.16758551,1795.5,1795.4,0.27129441]
[1680454769176,4.37538551,1795.5,1795.4,0.27129441]
[1680454769867,2.16758551,1795.6,1795.4,0.27129441]
[1680454770493,1.16758551,1795.5,1795.4,0.27129441]
[1680454771586,2.16758551,1795.6,1795.4,0.27129441]
[1680454771783,1.16758551,1795.5,1795.4,0.27129441]
[1680454772185,1.16758551,1795.5,1795.4,1.09829441]
[1680454772890,4.37538551,1795.5,1795.4,1.09829441]
[1680454775691,4.37538551,1795.5,1795.4,1.0942211]
[1680454779897,4.37538551,1795.5,1795.4,0.2672211]
[1680454780297,4.37538551,1795.5,1795.2,0.831]
[1680454780498,1.87578974,1795.4,1795.3,0.27009856]
[1680454782591,2.16758551,1795.4,1795.3,0.27009856]
[1680454787502,0.87610846,1795.4,1795.3,1.10509856]
[1680454805619,1.87610846,1795.4,1795.3,0.27009856]
[1680454806017,0.87610846,1795.4,1795.3,0.27009856]
[1680454806323,1.87610846,1795.4,1795.3,0.27009856]
[1680454806724,0.87610846,1795.4,1795.3,0.27009856]
[1680454806916,1.87610846,1795.4,1795.3,0.27009856]
[1680454807327,0.87610846,1795.4,1795.3,0.27009856]
[1680454808421,1.87610846,1795.4,1795.3,0.27009856]
[1680454808927,0.87610846,1795.4,1795.3,0.27009856]
[1680454809520,1.87610846,1795.4,1795.3,0.27009856]
[1680454809826,1.0,1795.4,1795.3,0.27009856]
[1680454810327,1.87574304,1795.4,1795.3,0.27009856]
[1680454810829,1.87575242,1795.4,1795.3,0.27009856]
[1680454811830,1.0,1795.4,1795.3,0.27009856]
[1680454812017,1.0,1795.4,1795.3,1.10209856]
[1680454813629,0.87592599,1795.4,1795.3,1.10209856]
[1680454815933,1.87592599,1795.4,1795.3,1.10209856]
[1680454816438,0.87592599,1795.4,1795.3,1.10209856]
[1680454826741,2.16758551,1795.5,1795.3,1.10209856]
[1680454827243,0.87639087,1795.4,1795.3,1.10209856]
[1680454827448,1.87639087,1795.4,1795.3,1.10209856]
[1680454828141,1.87642995,1795.4,1795.3,1.10209856]
[1680454828346,1.0,1795.4,1795.3,1.10209856]
[1680454828539,1.87643943,1795.4,1795.3,1.10209856]
[1680454828741,1.0,1795.4,1795.3,1.10209856]
[1680454830551,2.16758551,1795.4,1795.3,1.10209856]
[1680454830845,5.37538551,1795.4,1795.3,0.27009856]
[1680454831044,2.16758551,1795.4,1795.1,2.85117832]
[1680454831244,0.87654651,1795.3,1795.2,0.26526589]
[1680454831440,0.87654651,1795.3,1795.1,2.85117832]
[1680454832054,0.87654651,1795.3,1795.2,0.835]
[1680454832747,0.87654651,1795.3,1795.2,2.28981133]
[1680454833447,0.87654651,1795.3,1795.2,0.835]
[1680454835050,0.87654651,1795.3,1795.2,2.28981133]
[1680454835252,0.87654651,1795.3,1795.2,0.835]
[1680454836345,0.87654651,1795.3,1795.2,1.10016342]
[1680454849675,0.87654651,1795.5,1795.3,0.00250979]
[1680454849877,0.8764944,1795.5,1795.4,0.835]
[1680454850071,0.8764944,1795.5,1795.4,1.835]
[1680454850275,0.8764944,1795.5,1795.4,0.835]
[1680454850473,1.16758551,1795.6,1795.5,0.835]
[1680454850673,1.16758551,1795.6,1795.5,1.667]
[1680454851377,1.16758551,1795.6,1795.5,1.92982807]
[1680454852076,1.16758551,1795.6,1795.5,1.09782807]
[1680454855482,1.16556076,1795.6,1795.5,1.09782807]
[1680454857683,1.0,1795.7,1795.5,1.09782807]
[1680454859180,6.23419066,1795.8,1795.5,1.09782807]
[1680454860088,1.45585618,1795.7,1795.5,1.09782807]
[1680454860287,2.45585618,1795.7,1795.5,1.09782807]
[1680454860778,1.45585618,1795.7,1795.6,0.832]
[1680454860985,2.02639066,1795.8,1795.6,0.832]
[1680454862085,2.02639066,1795.8,1795.6,0.828]
[1680454863286,0.57053448,1795.8,1795.6,0.828]
[1680454863488,2.45585618,1795.9,1795.6,0.828]
[1680454863889,1.45585618,1795.8,1795.6,0.828]
[1680454864594,4.66365618,1795.8,1795.6,0.828]
[1680454864791,1.0,1795.7,1795.6,0.828]
[1680454866193,1.0,1795.7,1795.6,1.09052493]
[1680454866699,1.0,1795.7,1795.6,0.26252493]
[1680454867194,1.0,1795.7,1795.4,0.835]
[1680454867394,0.87564063,1795.6,1795.4,0.835]
[1680454868491,4.08344063,1795.6,1795.4,0.835]
[1680454869590,1.87564063,1795.5,1795.4,0.835]
[1680454869792,1.835,1795.5,1795.3,0.00250979]
[1680454869994,4.08352083,1795.4,1795.3,0.00250979]
[1680454873998,0.87572083,1795.4,1795.3,0.00250979]
[1680454874893,4.08352083,1795.4,1795.3,0.00250979]
[1680454881305,4.08352083,1795.4,1795.3,0.06561895]
[1680454883307,0.87572083,1795.4,1795.3,0.06561895]
[1680454884403,4.08352083,1795.4,1795.3,0.06561895]
[1680454890109,0.89978921,1795.5,1795.3,4.10741895]
[1680454890405,0.5836875,1795.5,1795.4,1.835]
[1680454891104,0.5836875,1795.5,1795.4,0.835]
[1680454893317,0.5836875,1795.6,1795.5,1.829]
[1680454893511,0.5836875,1795.6,1795.5,1.6599401]
[1680454896313,0.5836875,1795.6,1795.5,1.89168179]
[1680454897313,0.5836875,1795.6,1795.5,5.09948179]
[1680454897710,0.5836875,1795.7,1795.5,5.09948179]
[1680454898017,0.5836875,1795.7,1795.6,0.829]
[1680454903413,0.58322197,1795.7,1795.6,0.829]
[1680454904817,0.58322197,1795.7,1795.5,4.27454169]
[1680454905019,0.58322197,1795.7,1795.6,0.835]
[1680454906018,4.62302197,1795.7,1795.5,0.23174169]
[1680454906313,1.0,1795.6,1795.3,0.82950979]
[1680454906518,3.79103118,1795.5,1795.3,0.82950979]
[1680454906717,1.0,1795.4,1795.3,0.82950979]
[1680454908713,3.79103118,1795.5,1795.3,0.82950979]
[1680454911119,3.79103118,1795.5,1795.4,0.20090195]
[1680454915524,3.2078,1795.5,1795.4,0.20090195]
[1680454915721,1.16747625,1795.6,1795.4,0.20090195]
[1680454915923,0.58324572,1795.5,1795.4,0.20090195]
[1680454916625,0.58324572,1795.5,1795.4,1.03590195]
[1680454916829,0.58324572,1795.6,1795.4,1.03590195]
[1680454917322,0.58324572,1795.6,1795.4,0.20090195]
[1680454917527,0.58324572,1795.6,1795.5,0.834]
[1680454917723,0.58324394,1795.6,1795.5,0.834]
[1680454917928,0.583244,1795.6,1795.5,0.834]
[1680454919825,1.16747625,1795.7,1795.5,0.834]
[1680454920128,0.58327056,1795.6,1795.5,0.834]
[1680454922036,0.58327056,1795.6,1795.4,1.03590195]
[1680454925234,0.58327056,1795.5,1795.4,1.03590195]
[1680454948363,1.16747625,1795.6,1795.4,1.03590195]
[1680454948658,2.16747625,1795.6,1795.4,1.03590195]
[1680454949959,1.16747625,1795.6,1795.4,1.03590195]
[1680454950257,0.87607726,1795.5,1795.4,1.03590195]
[1680454963465,0.87677293,1795.5,1795.4,1.03590195]
[1680454963669,1.87677293,1795.5,1795.4,1.03590195]
[1680454964171,0.87677293,1795.5,1795.4,1.03590195]
[1680454970679,0.58447763,1795.5,1795.4,2.59380973]
[1680454973378,0.54762232,1795.5,1795.4,2.59380973]
[1680454973778,0.52791409,1795.5,1795.4,2.59380973]
[1680454973974,0.51387303,1795.5,1795.4,2.59380973]
[1680454974179,0.49581696,1795.5,1795.4,5.80160973]
[1680454974379,0.47804558,1795.5,1795.4,5.80160973]
[1680454974681,0.46027117,1795.5,1795.4,5.80160973]
[1680454974872,0.44277701,1795.5,1795.4,5.80160973]
[1680454975073,0.42514044,1795.5,1795.4,5.80160973]
[1680454975476,0.40549981,1795.5,1795.4,5.80160973]
[1680454975677,0.38781596,1795.5,1795.4,5.80160973]
[1680454975878,0.37122684,1795.5,1795.4,5.80160973]
[1680454976078,1.85806362,1795.8,1795.4,5.80160973]
[1680454976280,1.85806362,1795.8,1795.6,0.833]
[1680454980987,1.85806362,1795.8,1795.7,0.26977853]
[1680454981187,1.85806362,1795.8,1795.6,0.833]
[1680454983090,1.85806362,1795.8,1795.6,1.38820318]
[1680454984585,1.85806362,1795.8,1795.6,0.55520318]
[1680454984586,3.2078,1795.7,1795.6,0.55520318]
[1680454984891,6.21027625,1795.7,1795.4,1.16744838]
[1680454985082,3.2078,1795.5,1795.4,1.16744838]
[1680454985884,3.2078,1795.5,1795.3,1.16995817]
[1680454986386,3.2078,1795.5,1795.4,0.13457271]
[1680454997385,1.0,1795.6,1795.4,0.13457271]
[1680454997589,2.16747625,1795.6,1795.4,0.13457271]
[1680454997993,5.0428,1795.7,1795.5,0.827]
[1680454997994,1.16747625,1795.7,1795.5,0.827]
[1680454999495,2.14644355,1795.8,1795.6,0.828]
[1680454999496,1.85806362,1795.8,1795.6,0.828]
[1680454999696,0.69058737,1795.8,1795.6,1.828]
[1680454999999,0.69058737,1795.8,1795.6,0.828]
[1680455001098,0.69058737,1795.8,1795.7,0.30391052]
[1680455001401,0.69058737,1795.8,1795.6,1.828]
[1680455001601,0.69058737,1795.8,1795.6,0.828]
[1680455002303,0.69058737,1795.8,1795.6,0.829]
[1680455004001,0.69058737,1795.8,1795.6,4.0368]
[1680455004206,0.69058737,1795.8,1795.7,1.663]
[1680455004505,0.69058737,1795.8,1795.7,3.83044838]
[1680455004802,0.69058737,1795.8,1795.7,2.663]
[1680455005698,0.69058737,1795.8,1795.7,1.663]
[1680455006002,0.69058737,1795.8,1795.7,2.663]
[1680455006204,0.69058737,1795.8,1795.7,1.663]
[1680455006408,0.69058737,1795.8,1795.7,2.663]
[1680455007113,0.69058737,1795.8,1795.7,1.663]
[1680455007303,0.69058737,1795.8,1795.7,2.663]
[1680455007906,0.69058737,1795.8,1795.7,1.663]
[1680455008208,0.69058737,1795.8,1795.7,2.663]
[1680455009005,0.69058737,1795.8,1795.7,1.663]
[1680455009402,0.69058737,1795.8,1795.7,2.663]
[1680455010297,0.69058737,1795.8,1795.7,1.663]
[1680455015205,0.69058737,1795.8,1795.7,2.663]
[1680455015410,0.1,1796.0,1795.8,1.0]
[1680455015606,0.1,1796.0,1795.9,4.0428]
[1680455015814,0.1,1796.0,1795.9,3.2078]
[1680455016107,0.1,1796.0,1795.9,4.53647566]
[1680455020707,1.16747625,1796.3,1796.0,1.833]
[1680455020913,1.16747625,1796.3,1796.2,0.827]
[1680455021506,1.16747625,1796.4,1796.2,0.827]
[1680455025514,5.20427625,1796.5,1796.2,0.827]
[1680455026919,4.37527625,1796.5,1796.2,1.37959626]
[1680455030415,0.8731572,1796.4,1796.2,1.37959626]
[1680455031210,0.8731572,1796.4,1796.3,0.49338368]
[1680455031504,0.8731572,1796.4,1796.3,1.32838368]
[1680455031712,4.0809572,1796.5,1796.3,1.32838368]
[1680455032103,4.0809572,1796.5,1796.3,0.49338368]
[1680455032612,0.8731572,1796.4,1796.3,0.49338368]
[1680455032816,4.0809572,1796.5,1796.3,0.49338368]
[1680455035323,4.0809572,1796.5,1796.4,0.835]
[1680455036318,4.0809572,1796.5,1796.3,0.49338368]
[1680455038323,0.8731572,1796.4,1796.3,0.49338368]
[1680455042021,0.8731572,1796.4,1796.3,1.32838368]
[1680455042626,0.8731572,1796.4,1796.3,0.49338368]
[1680455042924,2.16747625,1796.4,1796.3,0.49338368]
[1680455044314,6.21027625,1796.5,1796.3,0.49338368]
[1680455044625,0.87418681,1796.4,1796.3,0.49338368]
[1680455044820,1.0,1796.4,1796.3,0.49338368]
[1680455045223,6.21027625,1796.5,1796.3,0.49338368]
[1680455045423,5.21027625,1796.5,1796.3,0.49338368]
[1680455045925,1.16747625,1796.4,1796.3,0.49338368]
[1680455047929,5.21027625,1796.5,1796.3,0.49338368]
[1680455048631,1.16747625,1796.4,1796.3,0.49338368]
[1680455062535,1.0,1796.4,1796.3,0.49338368]
[1680455062742,2.45585618,1796.4,1796.3,0.49338368]
[1680455065543,2.14615243,1796.4,1796.3,0.49338368]
[1680455067440,1.829,1796.3,1796.0,1.16744838]
[1680455067638,0.8760074,1796.1,1795.9,1.16744838]
[1680455068140,1.0,1796.0,1795.8,2.00244838]
[1680455068335,1.87610091,1796.0,1795.8,2.00244838]
[1680455069042,4.08390091,1795.9,1795.8,0.835]
[1680455070143,3.2078,1795.9,1795.8,0.835]
[1680455070337,4.08390091,1795.9,1795.8,0.835]
[1680455071846,0.87610091,1795.9,1795.7,1.16744838]
[1680455072063,0.87610091,1795.9,1795.7,2.00244838]
[1680455072337,0.87610091,1796.0,1795.7,2.00244838]
[1680455074246,0.87610091,1796.0,1795.7,0.835]
[1680455075148,0.87610091,1796.0,1795.8,0.2906803]
[1680455082161,0.87610091,1796.0,1795.8,1.1256803]
[1680455083463,0.87610091,1796.1,1795.8,1.1256803]
[1680455084353,0.87610091,1796.1,1795.9,0.83]
[1680455084554,0.87610091,1796.2,1796.0,0.835]
[1680455084754,0.87610091,1796.2,1796.1,0.835]
[1680455086463,1.16800986,1796.3,1796.1,4.0428]
[1680455086464,0.87610091,1796.3,1796.1,4.0428]
[1680455086766,0.87610091,1796.4,1796.1,4.0428]
[1680455088866,1.87610091,1796.4,1796.1,4.0428]
[1680455089065,0.87610091,1796.4,1796.1,4.0428]
[1680455091160,0.87610091,1796.4,1796.2,0.29526905]
[1680455091363,0.87610091,1796.4,1796.2,1.29526905]
[1680455091560,0.87610091,1796.4,1796.2,0.29526905]
[1680455092066,0.87610091,1796.4,1796.2,1.13026905]
[1680455095865,0.58289608,1796.3,1796.2,1.13026905]
[1680455102069,0.58289608,1796.3,1796.2,0.29526905]
[1680455102774,0.58289608,1796.3,1796.2,1.13026905]
[1680455108062,1.45899699,1796.4,1796.2,1.13026905]
[1680455110580,0.58289608,1796.4,1796.3,0.835]
[1680455110770,0.58289608,1796.4,1796.3,1.24986397]
[1680455111077,0.87610091,1796.5,1796.3,5.45766397]
[1680455111078,0.58289608,1796.5,1796.3,5.45766397]
[1680455111377,0.58289608,1796.5,1796.4,0.832]
[1680455111873,0.58289608,1796.5,1796.4,1.832]
[1680455112175,0.58289608,1796.5,1796.4,0.832]
[1680455112775,0.58289608,1796.5,1796.4,1.832]
[1680455112973,0.58289608,1796.5,1796.4,0.832]
[1680455117381,0.58289608,1796.6,1796.4,0.832]
[1680455117585,0.58289608,1796.6,1796.5,0.835]
[1680455125798,0.58289608,1796.6,1796.5,1.29735679]
[1680455126493,1.45899699,1796.6,1796.5,1.29735679]
[1680455127798,0.87610091,1796.6,1796.5,0.46235679]
[1680455127999,0.87610091,1796.6,1796.3,0.835]
[1680455128187,1.45876656,1796.5,1796.3,0.835]
[1680455129902,0.58266565,1796.4,1796.3,0.835]
[1680455130100,1.45876656,1796.5,1796.3,0.835]
[1680455130301,0.58266565,1796.4,1796.3,0.835]
[1680455133910,0.87610091,1796.4,1796.3,0.835]
[1680455141011,0.87610091,1796.4,1796.3,1.29706825]
[1680455154321,1.45471341,1796.4,1796.3,5.67231663]
[1680455154724,0.87094663,1796.4,1796.3,5.67231663]
[1680455155421,1.45475318,1796.4,1796.3,5.67231663]
[1680455155623,0.87094663,1796.4,1796.3,5.67231663]
[1680455156220,1.45475532,1796.4,1796.3,5.67231663]
[1680455156416,0.87094663,1796.4,1796.3,5.67231663]
[1680455163833,0.87094663,1796.4,1796.3,2.46451663]
[1680455164133,0.87094663,1796.4,1796.3,1.29706825]
[1680455164818,0.87094663,1796.4,1796.3,2.46451663]
[1680455168532,0.58386284,1796.4,1796.3,5.67231663]
[1680455177843,0.58386284,1796.4,1796.3,4.50486825]
[1680455178032,0.58386284,1796.4,1796.3,5.67042653]
[1680455178237,0.58386284,1796.4,1796.3,4.50486825]
[1680455178640,0.58386284,1796.4,1796.3,5.50486825]
[1680455179546,0.58386284,1796.4,1796.3,5.67881242]
[1680455179932,0.58386284,1796.5,1796.3,5.67881242]
[1680455180137,1.16800986,1796.6,1796.4,0.833]
[1680455180341,1.16800986,1796.6,1796.5,5.0368]
[1680455180542,2.01277402,1796.8,1796.5,5.0368]
[1680455180543,1.16800986,1796.7,1796.5,5.8718]
[1680455180754,1.16800986,1796.8,1796.6,0.835]
[1680455180944,1.16800986,1796.8,1796.7,0.833]
[1680455182142,1.16800986,1796.8,1796.7,0.835]
[1680455186047,1.16800986,1796.8,1796.7,1.46825565]
[1680455187246,1.16800986,1796.8,1796.7,2.01768445]
[1680455188548,1.16800986,1796.8,1796.7,2.01068445]
[1680455195353,1.16800986,1796.8,1796.7,5.21848445]
[1680455195653,1.16800986,1796.8,1796.7,1.18268445]
[1680455197445,2.16800986,1796.8,1796.7,1.18268445]
[1680455198846,1.16800986,1796.8,1796.7,1.18268445]
[1680455211572,1.16800986,1796.8,1796.7,2.01668445]
[1680455219778,1.16800986,1796.8,1796.7,5.22448445]
[1680455220681,1.1621073,1796.8,1796.7,2.01668445]
[1680455220977,1.1621073,1796.8,1796.7,5.22448445]
[1680455222775,1.1621073,1796.8,1796.7,2.01668445]
[1680455233488,1.1621073,1796.8,1796.7,5.22448445]
[1680455233885,1.1621073,1796.8,1796.7,2.01668445]
[1680455234090,0.58376245,1796.9,1796.8,1.0]
[1680455234287,0.58376245,1797.0,1796.8,4.11282905]
[1680455234480,0.58376245,1797.0,1796.9,6.33062905]
[1680455234683,0.58376245,1797.1,1796.9,6.03789697]
[1680455234974,0.58376245,1797.1,1797.0,2.667]
[1680455236595,0.58376245,1797.2,1797.0,2.667]
[1680455236894,0.58376245,1797.2,1797.1,4.0348]
[1680455237193,1.45944793,1797.3,1797.1,4.0348]
[1680455237490,0.87568548,1797.3,1797.2,0.829]
[1680455238582,0.58230496,1797.3,1797.2,0.829]
[1680455238980,0.58230496,1797.3,1797.1,3.2078]
[1680455239188,2.45799044,1797.3,1797.0,4.0418]
[1680455239386,1.58230496,1797.2,1797.0,4.0418]
[1680455240593,1.58230496,1797.2,1797.0,0.834]
[1680455241194,4.79010496,1797.2,1797.0,0.834]
[1680455241394,1.58230496,1797.2,1797.0,0.834]
[1680455242296,2.45799044,1797.2,1796.9,0.829]
[1680455242500,1.58230496,1797.2,1796.9,0.829]
[1680455242793,1.58230496,1797.1,1796.9,0.829]
[1680455242987,1.45799044,1797.2,1797.0,0.833]
[1680455243187,0.58230496,1797.2,1797.0,0.833]
[1680455243894,0.58230496,1797.2,1796.9,4.0418]
[1680455245497,1.58230496,1797.2,1796.9,0.834]
[1680455245697,1.58230496,1797.2,1796.9,4.0418]
[1680455245892,1.58230496,1797.2,1797.0,0.92381695]
[1680455246092,0.58230496,1797.2,1797.0,0.92381695]
[1680455246798,1.58230496,1797.2,1797.0,0.92381695]
[1680455247098,0.58230496,1797.2,1797.0,0.92381695]
[1680455247495,1.58230496,1797.2,1797.0,0.92381695]
[1680455247793,0.58230496,1797.2,1797.0,0.92381695]
[1680455248098,1.58230496,1797.2,1797.0,0.92381695]
[1680455248497,0.58230496,1797.2,1797.0,0.92381695]
[1680455252199,0.58230496,1797.2,1797.0,1.75281695]
[1680455253001,0.58230496,1797.2,1797.1,3.2078]
[1680455253203,0.58230496,1797.2,1797.0,1.75281695]
[1680455260408,0.58230496,1797.2,1797.1,0.828]
[1680455260711,0.58230496,1797.2,1797.1,0.82378715]
[1680455260908,0.58230496,1797.2,1797.1,1.74921867]
[1680455261803,0.58230496,1797.3,1797.1,4.95701867]
[1680455262002,0.58230496,1797.3,1797.2,0.833]
[1680455262400,0.87568548,1797.3,1797.2,0.833]
[1680455262605,0.87568548,1797.3,1797.1,1.75943152]
[1680455262809,0.58215283,1797.2,1797.1,1.75943152]
[1680455263705,0.58215283,1797.2,1797.1,4.96723152]
[1680455263908,0.58215283,1797.3,1797.1,4.96723152]
[1680455267616,1.45783831,1797.3,1797.1,1.75943152]
[1680455267815,0.58215283,1797.3,1797.1,1.75943152]
[1680455268017,1.58215283,1797.3,1797.1,1.75943152]
[1680455268620,2.45783831,1797.3,1797.1,1.75943152]
[1680455269520,1.45783831,1797.3,1797.1,1.75943152]
[1680455270220,0.58215283,1797.2,1797.1,1.75943152]
[1680455270621,0.58215283,1797.3,1797.1,4.96723152]
[1680455272514,0.58215283,1797.2,1797.1,4.96723152]
[1680455275420,0.58215283,1797.3,1797.2,0.828]
[1680455275630,1.45783831,1797.3,1797.2,2.662]
[1680455275816,0.58215283,1797.3,1797.2,1.662]
[1680455276019,0.58215283,1797.3,1797.2,2.60979898]
[1680455276524,0.87568548,1797.3,1797.2,2.60979898]
[1680455281128,0.87568548,1797.3,1797.2,3.15470983]
[1680455284437,0.87568548,1797.3,1797.2,2.32670983]
[1680455284838,1.87568548,1797.3,1797.2,2.32670983]
[1680455285037,0.87490414,1797.3,1797.2,2.32670983]
[1680455285230,1.87490414,1797.3,1797.2,2.32670983]
[1680455285535,1.87490461,1797.3,1797.2,2.32670983]
[1680455286033,1.0,1797.3,1797.2,0.94779898]
[1680455286234,2.16434836,1797.3,1797.2,0.94779898]
[1680455286438,2.16434836,1797.3,1797.0,2.51195432]
[1680455286637,0.58326865,1797.1,1797.0,3.67605129]
[1680455286836,0.58326865,1797.1,1797.0,2.51195432]
[1680455287338,0.58326865,1797.1,1797.0,3.67605129]
[1680455288040,0.58326865,1797.1,1797.0,2.51195432]
[1680455289233,0.58326865,1797.1,1797.0,1.67795432]
[1680455289430,0.87490298,1797.1,1796.9,1.16409697]
[1680455289630,0.58333399,1797.0,1796.9,1.16409697]
[1680455289837,1.58333399,1797.0,1796.9,1.16409697]
[1680455290636,0.58333399,1797.0,1796.8,1.99209697]
[1680455290935,0.58333399,1797.0,1796.9,0.82215223]
[1680455291234,0.58333399,1797.0,1796.8,1.99209697]
[1680455291628,0.58333399,1797.0,1796.9,1.16409697]
[1680455292044,0.58333399,1797.0,1796.9,1.99309697]
[1680455299536,0.58333399,1797.0,1796.9,2.99309697]
[1680455299741,0.58333399,1797.1,1797.0,0.826]
[1680455299942,0.58333399,1797.1,1797.0,3.82558478]
[1680455300442,0.58333399,1797.1,1797.0,2.82558478]
[1680455302044,0.58333399,1797.1,1797.0,1.99958478]
[1680455305947,0.58333399,1797.1,1797.0,2.87256363]
[1680455307348,0.58333399,1797.1,1797.0,6.08036363]
[1680455307753,0.58333399,1797.1,1797.0,6.0805602]
[1680455310743,1.45823697,1797.2,1797.0,4.91477885]
[1680455310941,0.87490298,1797.2,1797.1,0.834]
[1680455312055,0.87490298,1797.2,1797.1,0.827]
[1680455312845,0.58339325,1797.2,1797.1,2.99274687]
[1680455313146,0.58339325,1797.2,1797.1,1.99274687]
[1680455318449,1.16664281,1797.5,1797.2,1.0]
[1680455318649,1.45818166,1797.7,1797.4,4.0418]
[1680455318850,2.14798872,1797.7,1797.4,0.834]
[1680455320658,5.35578872,1797.7,1797.4,0.834]
[1680455320861,5.66598166,1797.7,1797.4,0.834]
[1680455321157,5.66598166,1797.7,1797.5,1.06680211]
[1680455323351,4.66598166,1797.7,1797.5,1.06680211]
[1680455326259,5.66598166,1797.7,1797.5,1.06680211]
[1680455326559,1.0,1797.6,1797.5,1.06680211]
[1680455327247,3.28918166,1797.6,1797.5,1.06680211]
[1680455327454,3.28918166,1797.6,1797.3,0.54392743]
[1680455327654,3.28918166,1797.6,1797.2,0.834]
[1680455327655,3.2078,1797.5,1797.2,0.834]
[1680455327857,1.0,1797.4,1797.2,0.834]
[1680455329460,3.2078,1797.5,1797.2,0.834]
[1680455331663,3.2078,1797.5,1797.2,1.39818175]
[1680455335967,3.2078,1797.5,1797.3,0.96703345]
[1680455342068,4.0348,1797.5,1797.3,0.96703345]
[1680455344467,3.2078,1797.5,1797.3,1.80103345]
[1680455347680,6.49198166,1797.7,1797.3,1.80103345]
[1680455348377,1.16649486,1797.5,1797.3,1.80103345]
[1680455348566,2.16649486,1797.5,1797.3,1.80103345]
[1680455348768,1.16649486,1797.4,1797.3,1.80103345]
[1680455352075,1.16649486,1797.4,1797.3,0.96703345]
[1680455355484,1.00789486,1797.4,1797.3,0.96703345]
[1680455366095,1.00789486,1797.4,1797.3,1.83956198]
[1680455369491,1.00789486,1797.4,1797.3,0.96703345]
[1680455370896,1.00789486,1797.4,1797.3,1.83956198]
[1680455372192,1.00789486,1797.4,1797.3,2.67056198]
[1680455375304,0.87553063,1797.4,1797.3,2.96378032]
[1680455376303,0.87553063,1797.4,1797.3,1.79803345]
[1680455379003,0.87553063,1797.4,1797.3,2.67063734]
[1680455379303,0.87553063,1797.4,1797.3,1.79803345]
[1680455379506,0.87553063,1797.4,1797.3,2.67063361]
[1680455382204,0.87553063,1797.4,1797.3,3.50463361]
[1680455384004,0.87553063,1797.4,1797.3,2.63203345]
[1680455384210,0.87553063,1797.4,1797.3,3.79778032]
[1680455384609,0.87553063,1797.4,1797.3,2.63203345]
[1680455384810,0.87553063,1797.4,1797.3,3.50421404]
[1680455385012,0.87553063,1797.4,1797.3,2.63203345]
[1680455385203,0.87553063,1797.4,1797.3,3.50420548]
[1680455385508,0.87553063,1797.4,1797.3,2.63203345]
[1680455385899,0.87553063,1797.4,1797.3,3.50393995]
[1680455386097,0.87553063,1797.4,1797.3,2.63203345]
[1680455386510,0.87553063,1797.4,1797.3,3.5036606]
[1680455392002,0.87553063,1797.4,1797.3,2.6696606]
[1680455396809,0.87553063,1797.5,1797.3,1.79803345]
[1680455397115,0.87553063,1797.5,1797.4,0.87233168]
[1680455397613,0.87553063,1797.5,1797.4,1.8382727]
[1680455398209,0.8750361,1797.5,1797.4,1.8382727]
[1680455398416,2.16693869,1797.6,1797.4,1.8382727]
[1680455398611,0.87503759,1797.5,1797.4,1.8382727]
[1680455400214,3.2078,1797.5,1797.4,0.96594102]
[1680455400518,4.2078,1797.5,1797.4,1.8382727]
[1680455401010,2.16670596,1797.6,1797.4,1.8382727]
[1680455401210,5.37450596,1797.6,1797.4,1.8382727]
[1680455401810,0.87503068,1797.5,1797.4,1.8382727]
[1680455403411,1.16670596,1797.5,1797.4,0.96594102]
[1680455404418,1.826,1797.4,1797.2,0.87292982]
[1680455404613,3.00092209,1797.3,1796.9,1.99774687]
[1680455404812,0.87518401,1797.1,1796.9,1.99774687]
[1680455405114,1.87518401,1797.2,1797.0,1.16574687]
[1680455405310,0.87518401,1797.2,1797.0,0.834]
[1680455405511,0.87518401,1797.2,1797.0,1.834]